[Event "Benidorm Open-A 2022"]
[Site "Benidorm"]
[Date "2022.12.06"]
[Round "4.16"]
[White "Nandhidhaa, P V"]
[Black "Sarveshwaran V"]
[Result "1/2-1/2"]
[ECO "C10"]
[WhiteElo "2309"]
[BlackElo "2040"]
[Annotator "TA"]
[PlyCount "127"]
[EventDate "2022.12.03"]
[EventType "swiss"]
[EventCountry "ESP"]
[SourceTitle "playchess.com"]
[Source "ChessBase"]
[SourceQuality "1"]
[TimeControl "5400+30"]

{[%evp 18,127,25,31,52,22,17,17,11,11,11,7,0,-5,0,-8,0,-14,-10,0,0,0,13,16,14,0,22,0,0,-8,0,-37,15,16,40,10,44,49,66,65,63,57,57,50,56,31,47,47,47,44,129,131,131,44,44,47,47,48,41,30,27,20,29,22,15,12,13,12,45,38,28,29,41,42,112,110,139,133,130,114,139,119,179,89,189,179,444,444,436,436,436,436,356,349,302,0,86,0,0,0,0,0,0,0,0,0,0,0,0,0,0,0]} 1. e4 e6 2. d4 d5 3. Nc3 dxe4 4. Nxe4 Be7 5. Nf3 Nd7 6. Bd3 Ngf6 7. Nxf6+ Bxf6 8. O-O O-O {8...0-0 scores better than 8...c5.} 9. Re1 c5 10. c3 g6 {[#] C10: French with 3 Nc3: Unusual Black 3rd moves and 3...dxe4.} 11. h4 $146 {[%cal Oh4h5]} ({Predecessor:} 11. Bh6 Bg7 12. Qd2 cxd4 13. cxd4 Nf6 14. Rad1 Bd7 15. Ne5 Bc6 16. Bb1 Qd5 17. Nxc6 Qxc6 18. Bxg7 Kxg7 {0-1 (64) Kratochvil,J (1877)-Sveda,J (1941) Czech Republic 2008}) 11... cxd4 12. cxd4 {[%cal Oh4h5]} Bxh4 13. Bh6 Re8 14. Nxh4 Qxh4 15. Qd2 $132 {[%mdl 2048] White is not keeping still} Qxd4 16. Re4 Qd6 17. Qc3 {[%csl Gh6][%cal Rc3g7] Inhibits Nf6.} e5 {next ...Nf6 is good for Black.} 18. Rae1 $1 Nf6 (18... Nc5 $2 19. Rxe5 Be6 20. Rd5 $3 $18 {[%mdl 512]}) 19. Rxe5 Rxe5 20. Rxe5 (20. Qxe5 Qxe5 21. Rxe5 Be6 $15) 20... Be6 {Threatens to win with ...Ng4.} 21. Re3 {[%cal Be5e3,Be3f3,Bf3d3,Bd3d8][%mdl 1056] White has compensation.} Qd8 (21... Bxa2 $2 22. Rf3 Rd8 23. Rxf6 $18) (21... Ne8 $5) 22. Rf3 (22. Bf1 $5 {[%cal Re3d3]} Ne8 23. g3 $11) 22... Ne8 23. Be2 (23. Qe1 $5 {[%cal Re1e6]} Qd6 24. Bb5 $11) 23... Rc8 (23... Bxa2 $2 24. b3 Rc8 25. Qa1 $18) (23... Qh4 {seems wilder.} 24. Bd2 Rd8 25. Qc1 Rc8) 24. Qa3 {[%csl Gh6][%cal Ra3f8]} Qd6 {Against Qf8+} ({Better is} 24... Nd6 $15 25. Qe3 Qh4) 25. Qxa7 $11 Qb4 (25... Qe5 {is interesting.} 26. Qa3 Nd6 27. Rc3 Rxc3 28. bxc3 g5) 26. b3 (26. Qa3 {simplifies} Qxa3 27. Rxa3 f6 28. Bf3) 26... Nd6 27. Rd3 Nf5 (27... Qe1+ 28. Bf1 Nf5 29. Bd2 $16) 28. Bd2 {Inhibits Qe1+.} Qe4 29. Bf1 h5 30. Qb6 Qc6 31. Rd8+ Kh7 32. Qxc6 Rxc6 33. Bf4 Rc8 (33... Rc2 $14) 34. Rxc8 $16 Bxc8 {[%mdl 4096] Endgame KBB-KBN} 35. Be5 (35. b4 $1 $16) 35... Be6 $14 36. Bd3 Ne7 37. Bc2 Nd5 38. a3 f6 39. Bd4 Kg7 40. f3 g5 41. Kf2 h4 42. Bc5 Nf4 {[%cal Oe6b3]} 43. Bd6 Nd5 44. a4 f5 45. b4 {[%cal Bb3b4,Bb4b5][%mdl 32]} g4 (45... Kf6 $14) 46. a5 $16 g3+ 47. Kg1 $1 Kf6 48. b5 Bc8 49. Bd3 Ke6 (49... Bd7 $16 {is a better defense.} 50. Bc4 (50. a6 bxa6 51. bxa6 Bc6 $16) 50... Ne3) 50. Bc5 (50. Bb8 $1 $18 {is more deadly.}) 50... Nc7 (50... b6 $16 51. axb6 (51. Bxb6 Nxb6 52. axb6 Bb7 $11) 51... Ke5) 51. Bc4+ Nd5 $2 (51... Kd7 {was worth a try.} 52. Bb4 Ne6) 52. f4 $1 $18 {b6 is the strong threat.} (52. a6 bxa6 53. bxa6 f4 $16) 52... Bd7 53. Kf1 Be8 {[#]} 54. Ke1 $1 ({And not} 54. a6 bxa6 55. bxa6 Bc6 $11) 54... Bd7 55. Kd2 Be8 {[#]} 56. Ke1 $2 ({Not} 56. a6 bxa6 57. bxa6 Bc6 $11) (56. Kd3 $1 $18 {[%cal Rd3d4] and the rest is easy. And now Kd4 would win.} Bxb5 57. Bxb5 Nxf4+ 58. Kd4 (58. Ke3 Nxg2+ 59. Kf3 Ne1+ 60. Kf4 Ng2+ 61. Kf3 Ne1+ 62. Kf4 Ng2+ 63. Kf3 $11)) 56... Bd7 $1 $16 57. a6 {White is more active.} ({White should play} 57. Bf8 $16) 57... bxa6 $11 {The position is equal.} 58. bxa6 {[%cal Oc5e7] Strongly threatening Be7!} Bc6 59. a7 Kf6 60. Bd4+ {A strong pair of Bishops.} Kg6 61. Bxd5 Bxd5 62. Kf1 Kh5 63. Kg1 Kg4 64. Be5 {White really could win this.   Weighted Error Value: White=0.15 (very precise) /Black=0.17 (very precise)} 1/2-1/2

[Event "Benidorm Open-A 2022"]
[Site "Benidorm"]
[Date "2022.12.06"]
[Round "4.17"]
[White "Hiren K G"]
[Black "Nawin J J"]
[Result "1-0"]
[ECO "B50"]
[WhiteElo "1965"]
[BlackElo "2351"]
[Annotator "TA"]
[PlyCount "85"]
[EventDate "2022.12.03"]
[EventType "swiss"]
[EventCountry "ESP"]
[SourceTitle "playchess.com"]
[Source "ChessBase"]
[SourceQuality "1"]
[TimeControl "5400+30"]

{[%evp 14,85,0,-5,5,0,-9,-23,-20,-53,-16,-27,18,0,-6,-8,36,9,44,37,88,77,225,152,177,0,103,50,39,49,32,31,43,45,45,0,75,30,112,99,87,31,116,116,130,127,120,112,117,139,207,184,337,314,336,312,365,363,345,334,479,468,684,676,817,833,774,774,774,662,682,649,513,472]} 1. e4 c5 2. Nf3 d6 3. g3 e5 4. Bg2 Nc6 5. c3 g6 6. O-O Bg7 7. d3 Nge7 8. a3 a5 {A04: Unusual lines after 1 Nf3 and King's Indian Attack.} 9. Be3 O-O {[#]} 10. Nfd2 $146 ({Predecessor:} 10. Qc1 f5 11. Bh6 a4 12. Bxg7 Kxg7 13. Nbd2 Na5 14. Qe1 b6 15. Rd1 Ba6 16. c4 {1-0 (41) Diaz Rosas,J (2367)-Abdisalimov,A (2392) Chess.com INT 2021}) 10... Be6 {Black has an edge.} 11. f4 Rc8 12. Nf3 h6 13. a4 b6 14. Na3 f5 15. Qe2 Kh7 16. Rae1 Re8 (16... fxe4 $14 17. dxe4 exf4 18. Bxf4 Ne5) 17. Bc1 $16 Ng8 (17... exf4 $16 {was necessary.} 18. Bxf4 Ne5) 18. Nh4 {[%cal Oh4g6]} Bf6 19. Nf3 (19. Nb5 $18) 19... d5 (19... Bg7 $1 $11 {remains equal.}) 20. fxe5 (20. Nb5 $16) 20... Nxe5 $14 21. Nxe5 Bxe5 22. exf5 Bxf5 {[%cal Oe5c3] White must now prevent ...Bxc3!} 23. Qf3 Bg7 24. g4 {[%cal Bg3g4,Bg4g5][%mdl 32]} (24. Qxd5 {simplifies} Bxd3 25. Qxd8 Rcxd8 26. Rxe8 Rxe8 27. Rd1) 24... Be6 (24... Rxe1 $11 25. Rxe1 Qh4) 25. g5 h5 (25... Qd7 $11) 26. Nb5 $16 Qd7 27. Qg3 ({Better is} 27. Bf4 $1 $16) 27... Ne7 {[#] Black is now going downhill.} ({Black should play} 27... Bg4 $14) 28. Qd6 $1 {White is much more active.} Nf5 {[#]} 29. Qxd7 ({Don't play} 29. Qxb6 $6 Nh4 30. Qd6 (30. Qxa5 $2 Bh3 $19) 30... Nxg2 31. Qxd7 Bxd7 $11) 29... Bxd7 30. Bxd5 Bxb5 31. axb5 Be5 (31... a4 $16) 32. Be4 $36 {[%mdl 2048] White is really pushing.} c4 $2 (32... Bb8 {keeps fighting.} 33. Be3 Rcd8 34. Bxf5 gxf5) 33. d4 Bd6 34. Bd2 Kg7 35. Bxf5 gxf5 36. Kg2 ({Resist} 36. Rxf5 Rxe1+ 37. Bxe1 Re8 $18) 36... Kg6 (36... h4 $142 37. Rxf5 h3+ 38. Kxh3 Rh8+ 39. Kg4 Rxh2) 37. h4 {White is clearly winning.} Bb8 (37... a4 $142 38. Kf3 Ra8) 38. Kf3 f4 39. Rxe8 Rxe8 40. Re1 (40. Bxf4 $2 {too greedy.} Bxf4 41. Rg1 Bd2 $19) 40... Rxe1 41. Bxe1 Kf5 42. Bd2 {[%cal Og5g6] aiming for g6!} Bd6 {Inhibits g6.} 43. g6 {Weighted Error Value: White=0.19 (very precise) /Black=0.53} 1-0

[Event "Benidorm Open-A 2022"]
[Site "Benidorm"]
[Date "2022.12.06"]
[Round "4.18"]
[White "Palomo Teruel, Xavier"]
[Black "Kuipers, Eelco"]
[Result "0-1"]
[ECO "A25"]
[WhiteElo "2040"]
[BlackElo "2311"]
[Annotator "TA"]
[PlyCount "94"]
[EventDate "2022.12.03"]
[EventType "swiss"]
[EventCountry "ESP"]
[SourceTitle "playchess.com"]
[Source "ChessBase"]
[SourceQuality "1"]
[TimeControl "5400+30"]

{[%evp 12,94,15,-5,10,3,10,-2,-22,-37,-27,-25,-29,-14,-26,-22,-23,-79,-72,-63,-54,-60,-60,-60,-50,-55,-46,-53,-47,-51,-51,-81,-10,-18,-21,-26,-22,-28,-28,-18,-35,-37,-30,-30,-6,-18,0,0,25,28,31,0,0,0,0,0,0,0,0,-31,0,0,22,0,0,0,0,0,0,0,0,-580,-567,-676,-665,-1100,-1027,-1014,-695,-3201,-1487,-1429,-1363,-1161,-1186]} 1. c4 e5 2. Nc3 Nc6 3. g3 f5 4. Bg2 Nf6 5. d3 Bb4 6. Bd2 O-O 7. Nd5 Bxd2+ {A25: English Opening vs King's Indian with ...Nc6 but without early d3.} (7... Nxd5 {simplifies} 8. cxd5 Bxd2+ 9. Qxd2 Ne7) 8. Qxd2 Ne7 {[#]} 9. f4 $146 ({Predecessor:} 9. Nxe7+ Qxe7 10. e3 d6 11. Ne2 Rb8 12. O-O Qe8 13. Qa5 Qd8 14. Qxa7 Bd7 15. Qa3 {0-1 (53) Timofeev,A (2335)-Rusanov,M (2436) Peterhof 2007}) 9... Nexd5 {The position is equal.} 10. cxd5 Qe7 11. fxe5 Qxe5 {[%cal Of8e8]} 12. Qc3 Qd6 (12... Qe3 {with more complications.} 13. Rc1 c6 14. Nh3 Re8) 13. Rc1 c6 14. Qc5 (14. Qa3 $11 {keeps the balance.} Qe5 15. Qc3) 14... Qxc5 $17 15. Rxc5 d6 16. Rc1 c5 ({Much worse is} 16... cxd5 17. Nf3 $11) 17. Nh3 Bd7 18. Nf4 Rfe8 19. h4 g6 20. Bf3 a5 21. Kf2 Kg7 (21... Rac8 $17) 22. d4 $11 b6 {[%cal Bb7b6,Bb6b5,Bb5b4,Bb4b3][%mdl 32]} 23. Ne6+ Bxe6 24. dxe6 Rab8 25. d5 b5 26. Rc2 Rec8 27. Ra1 Rc7 28. a4 c4 29. Ke3 b4 30. Rac1 c3 31. bxc3 (31. Kd4 $14) 31... b3 $15 32. Rb2 {[#] Black must now prevent Kd3.} Rc4 33. Kd3 Rxa4 {And now ...Ng4 would win.} 34. Rcb1 Ra3 35. c4 ({Much weaker is} 35. e4 fxe4+ 36. Bxe4 Ng4 $17) 35... a4 36. Kd4 Rc8 37. Kc3 {aiming for Kb4.} Rb8 38. Rd1 Kf8 39. c5 $1 Ke7 $36 {[%mdl 2048] Black has the initiative.} ({Don't play} 39... dxc5 40. d6 $16) 40. c6 Ne8 41. Rd4 $2 {[%mdl 8192] [#]} (41. g4 $11 {and White has nothing to worry.}) 41... Ra1 $1 $19 {Black is clearly winning.} 42. e4 Nc7 {Hoping for ...Nb5+.} 43. Rd1 Rxd1 44. Bxd1 fxe4 {Threatens to win with ...Nb5+.} 45. Kd4 Rb4+ (45... a3 $142 46. Rxb3 a2 47. Kxe4 Rxb3 48. Bxb3 a1=Q) 46. Ke3 Nxd5+ 47. Kd2 Kxe6 {Weighted Error Value: White=0.56/Black=0.31} 0-1

[Event "Benidorm Open-A 2022"]
[Site "Benidorm"]
[Date "2022.12.06"]
[Round "4.19"]
[White "Cruz Lledo, Pablo"]
[Black "Kocak, Ediz"]
[Result "1-0"]
[ECO "D30"]
[WhiteElo "2404"]
[BlackElo "2115"]
[Annotator "TA"]
[PlyCount "111"]
[EventDate "2022.12.03"]
[EventType "swiss"]
[EventCountry "ESP"]
[SourceTitle "playchess.com"]
[Source "ChessBase"]
[SourceQuality "1"]
[TimeControl "5400+30"]

{[%evp 20,111,0,0,13,-12,43,29,28,12,91,100,97,95,99,99,89,22,31,18,22,-6,-7,-16,-13,-12,0,0,0,0,16,0,0,0,1,5,39,0,0,0,10,0,92,75,67,0,0,0,0,0,0,0,0,0,0,0,0,-39,-39,-44,-38,-47,0,-20,0,0,0,0,0,-32,0,0,0,0,0,0,0,0,0,0,0,0,0,0,0,0,0,0,0,0,0,0,766,766]} 1. d4 d5 2. c4 e6 3. Nf3 Nf6 4. g3 Bb4+ 5. Bd2 Be7 6. Qc2 O-O 7. Bg2 c6 8. O-O Nbd7 9. Rd1 b6 10. a4 Ba6 11. b3 c5 {E15: Queen's Indian: 4 g3 sidelines, 4 g3 Ba6 and 4 g3 Bb7 early deviations.} 12. Na3 {[#]} (12. Nc3 {looks sharper.} dxc4 13. bxc4 Bxc4 14. Ne5) 12... dxc4 $146 (12... Bb7 $11) ({Predecessor:} 12... Bb7 13. cxd5 Bxd5 14. Qb2 cxd4 15. Nxd4 Bxg2 16. Kxg2 Qc8 17. b4 Qb7+ 18. Kg1 Ne4 19. Be3 {½-½ (62) Papaioannou,I (2652)-Adams,M (2727) Heraklion 2017}) 13. Nxc4 $14 Bb7 {White has an edge.} 14. Bf4 Nd5 {[#]} (14... Bd5 $11) 15. dxc5 $1 $16 {White has more active pieces. The black rooks are badly placed.} Nxc5 16. e4 {Prevents f5.} (16. Rac1 {seems wilder.} Qc8 17. Nd6 Qd7 18. Nxb7 Qxb7 19. Ng5) 16... Nb4 {[%csl LRc2,LRe4]} 17. Qe2 Qc8 18. Bd6 (18. Nd6 $16 Bxd6 19. Bxd6) 18... Bxd6 $11 19. Nxd6 Qc7 20. Qc4 a5 21. Nxb7 (21. Qc3 {is interesting.} Rad8 22. Nxb7 Qxb7 23. Ne5) 21... Qxb7 22. e5 Rad8 23. Nd4 $1 Qc7 24. f4 Nca6 25. Bf1 Qxc4 26. Bxc4 {[#] Hoping for f5.} Nc5 27. Rac1 Na2 {Pair of Knights!} 28. Rc2 (28. Nc6 $5 {[%cal Rc6d8]}) 28... Nb4 29. Rcc1 h6 30. f5 Ncd3 31. Bxd3 (31. Nxe6 {is more complex.} fxe6 32. fxe6 Rde8 33. e7+) 31... Rxd4 32. Bb1 ({White should play} 32. Bc4 $1 $14 Rxd1+ 33. Rxd1) 32... Rxd1+ 33. Rxd1 {[%mdl 4096] Endgame KRB-KRN} Nd5 34. fxe6 fxe6 35. Bd3 Rf3 36. Bc4 Kf8 37. Rd4 Ke7 38. Bxd5 exd5 39. Rxd5 Rxb3 {KR-KR} 40. Rd6 Rb2 41. Rc6 Kf7 42. h4 h5 43. Rc7+ Kg6 44. e6 Kf6 (44... Rb4 {simplifies} 45. Rb7 Kf6 46. Rf7+ Kxe6 47. Rxg7 Kd6) 45. e7 Kf7 {Against e8Q+} 46. e8=Q+ Kxe8 47. Rxg7 Rb4 48. Rb7 Kd8 49. Kf2 Kc8 50. Rh7 Rxa4 {White must now prevent ...Ra1.} 51. Rxh5 Rb4 52. Rh8+ Kb7 53. h5 {[%cal Bh4h5,Bh5h6,Bh6h7][%mdl 32] And now h6 would win.} Rb2+ 54. Kg1 a4 {aiming for ...a3.} 55. h6 Rc2 $2 {[%mdl 8192]} (55... a3 $2 56. h7 Rb1+ 57. Kg2 (57. Kf2 $2 Rh1 $19) 57... Rb2+ 58. Kh3 $18 (58. Kf3 $2 Rh2 $19)) (55... Rb1+ $11 56. Kg2 Rb2+ 57. Kh3 (57. Kf3 Rh2 $11) 57... Rb1) 56. h7 {Weighted Error Value: White=0.10 (very precise) /Black=0.15 (very precise)} 1-0

[Event "Benidorm Open-A 2022"]
[Site "Benidorm"]
[Date "2022.12.06"]
[Round "4.20"]
[White "Plaskett, H James"]
[Black "Panjer, Sidney"]
[Result "1/2-1/2"]
[ECO "E33"]
[WhiteElo "2365"]
[BlackElo "2115"]
[Annotator "TA"]
[PlyCount "60"]
[EventDate "2022.12.03"]
[EventType "swiss"]
[EventCountry "ESP"]
[SourceTitle "playchess.com"]
[Source "ChessBase"]
[SourceQuality "1"]
[TimeControl "5400+30"]

{[%evp 15,60,22,21,-4,-16,-37,-33,-93,-72,-69,-81,-81,-60,-64,-70,-87,-89,-89,-89,-87,-6,-33,10,17,6,18,29,5,6,6,4,0,0,0,0,-8,-8,-14,-7,-2,-4,-6,0,-12,0,0,0]} 1. c4 e6 2. d4 Nf6 3. Nf3 Nc6 4. Nc3 Bb4 5. Qc2 d6 6. a3 Bxc3+ 7. Qxc3 O-O 8. b4 e5 9. d5 {E33: Nimzo-Indian: Classical: 4...Nc6.} Ne7 {[#]} 10. e3 $146 ({Predecessor:} 10. g3 Bf5 11. Bg2 Qd7 12. O-O Bh3 13. Bg5 Bxg2 14. Kxg2 Ne4 15. Qc2 Nxg5 16. Nxg5 Qf5 17. Qxf5 Nxf5 {1-0 (52) Hochstrasser,M (2298)-Vianin,P (2196) Switzerland 2018}) 10... a5 11. Bb2 (11. b5 $15) 11... axb4 12. axb4 Rxa1+ 13. Bxa1 b5 $1 14. Nd2 $1 bxc4 15. e4 {[#]} c6 $1 16. dxc6 Nxc6 {Strongly threatening ...d5.} 17. Bxc4 {[#]} Qb6 (17... d5 $1 $17 {[%cal Rd5c4]} 18. exd5 Nxd5) 18. b5 Nd4 19. Qd3 Be6 20. Bxd4 exd4 21. O-O {[%cal Bh1f1,Bf1e1,Be1e5][%mdl 32]} d5 {The position is equal.} 22. exd5 Nxd5 {[%cal Od5e3]} 23. Bxd5 Bxd5 24. Re1 h6 25. Re5 Rd8 26. h3 Be6 27. Nf3 Qd6 28. Re1 Qb4 29. Kh1 Qc3 30. Rd1 {aiming for Qxc3.} Qb4 {Weighted Error Value: White=0.09 (flawless) /Black=0.11 (very precise)} 1/2-1/2

[Event "Benidorm Open-A 2022"]
[Site "Benidorm"]
[Date "2022.12.06"]
[Round "4.21"]
[White "Cabezas Ayala, Ivan"]
[Black "Sanchez Manzanares, Jorge Luis"]
[Result "1/2-1/2"]
[ECO "B76"]
[WhiteElo "2259"]
[BlackElo "2095"]
[Annotator "TA"]
[PlyCount "78"]
[EventDate "2022.12.03"]
[EventType "swiss"]
[EventCountry "ESP"]
[SourceTitle "playchess.com"]
[Source "ChessBase"]
[SourceQuality "1"]
[TimeControl "5400+30"]

{[%evp 29,78,74,53,50,56,56,48,43,68,60,78,96,129,109,257,256,297,305,341,93,97,103,82,-54,186,187,184,167,176,115,193,152,162,154,91,0,170,147,440,444,612,535,616,358,358,358,573,354,349,0,0]} 1. e4 {Rogozenco,Dorian} c5 2. Nf3 d6 3. d4 cxd4 4. Nxd4 Nf6 5. Nc3 g6 6. Be3 Bg7 7. f3 O-O 8. Qd2 Nc6 9. O-O-O d5 10. exd5 Nxd5 11. Nxc6 bxc6 12. Bd4 e5 13. Bc5 Be6 14. Ne4 Re8 15. h4 Nf4 {[%cal Bd5f4,Bf4h5,Bh5f6][%mdl 32]} 16. g3 {[%cal Bg2g3,Bg3g4,Bg4g5][%mdl 32] B76: Sicilian Dragon: Yugoslav Attack, 9 g4 and 9 0-0-0.} (16. Qe1 {looks sharper.} Bd5 17. h5 f5 18. hxg6 fxe4 19. fxe4 Qg5 20. Be3) 16... Qxd2+ 17. Rxd2 Nh5 18. g4 {White is slightly better.} Nf6 19. Bd3 {[#]} (19. Nxf6+ {simplifies} Bxf6 20. Bd3 Bg7 21. Be4) 19... Red8 $146 ({Predecessor:} 19... Nd7 20. Be3 Nb6 21. h5 Nd5 22. Bc5 Red8 23. hxg6 hxg6 24. Ba6 Rd7 25. Ng5 Nf4 26. Nxe6 Nxe6 27. Rxd7 Nxc5 {1-0 (50) Shirov,A (2705)-Polzin,R (2514) Germany 2006 CBM 112 [Rogozenco,Dorian]}) 20. Ng5 Bd5 21. c4 {White is more active.} Bxf3 22. Nxf3 $18 e4 23. g5 $1 exf3 24. Be7 $2 {A strong pair of Bishops.} (24. gxf6 $18 {is the precise move to win.} Bh6 25. Kc2 $1) 24... Ng4 $16 {White must now prevent ...Rd7.} 25. Bxd8 Rxd8 26. Rg1 ({White should play} 26. Rf1 $16) 26... Ne3 $2 (26... Rd4 $15 {keeps the upper hand.} 27. Bf1 h5) 27. Rg3 $1 $18 Rxd3 28. Rxd3 f2 29. Rf3 (29. Rdxe3 $2 {too greedy.} f1=Q+ 30. Kc2 Qxc4+ 31. Kb1 Qf1+ 32. Kc2 Qf2+ 33. Kd1 Be5 $1 $19 {[%mdl 512]}) ({Don't play} 29. Rd8+ $6 Bf8 30. Rf3 (30. Rxe3 $2 {loses.} f1=Q+ 31. Kd2 Qf4 $19) 30... f1=Q+ 31. Rxf1 Nxf1) 29... f1=Q+ (29... f1=R+ $16 30. Rxf1 Nxf1) 30. Rxf1 {Really sharp!} Nxf1 {[#]} 31. b4 $1 {[%cal Bb2b4,Bb4b5][%mdl 32]} Be5 ({Black should try} 31... Ba1) 32. c5 ({Better is} 32. Kc2 $16) 32... Ng3 $2 (32... Ne3 $11 {and Black stays safe.}) 33. Ra3 Nf5 $2 {[%mdl 8192]} (33... Bb8 $16 {was necessary.}) 34. Rxa7 Bg3 35. a4 {Threatens to win with a5.} Bxh4 36. b5 Bxg5+ 37. Kb2 Bf6+ $2 (37... Nd4 {keeps fighting.} 38. Kc3 Nxb5+ 39. axb5 cxb5) 38. Ka2 cxb5 {[#]} 39. axb5 (39. c6 $1 $18 {[%cal Rc6c7]} bxa4 40. c7) 39... Bd4 {Weighted Error Value: White=0.70/Black=0.70} 1/2-1/2

[Event "Benidorm Open-A 2022"]
[Site "Benidorm"]
[Date "2022.12.06"]
[Round "4.22"]
[White "Ilinca Ilinca, Felix Antonio"]
[Black "Achuthan, Dylan"]
[Result "1-0"]
[ECO "B32"]
[WhiteElo "2233"]
[BlackElo "2050"]
[Annotator "TA"]
[PlyCount "63"]
[EventDate "2022.12.03"]
[EventType "swiss"]
[EventCountry "ESP"]
[SourceTitle "playchess.com"]
[Source "ChessBase"]
[SourceQuality "1"]
[TimeControl "5400+30"]

{[%evp 10,63,28,25,35,31,27,18,25,23,32,20,28,27,22,23,20,20,37,27,53,53,42,27,32,31,23,39,53,61,133,131,315,316,411,416,394,361,395,368,407,411,395,369,683,401,392,383,373,371,356,358,360,340,3084,2028]} 1. e4 c5 2. Nf3 {[%cal Bg1f3,Bf3d4,Bd4b5,Bb5a3,Ba3c2][%mdl 32]} Nc6 3. d4 cxd4 4. Nxd4 e5 5. Nb5 d6 6. c4 g6 {6...Be6 gains popularity. B32: Sicilian: Löwenthal and Kalashnikov Variations.} 7. N1c3 {[#] Nd5 is the strong threat.} a6 8. Na3 Bg7 {The position is equal.} 9. Nc2 Nf6 {[%cal Bg8f6,Bf6h5,Bh5f4][%mdl 32]} 10. Be2 O-O 11. Be3 Be6 12. O-O Rc8 13. f3 Nh5 14. Nd5 {[#]} Nd4 $146 ({Predecessor:} 14... Bxd5 15. Qxd5 Nd4 16. Bd3 b5 17. Nxd4 exd4 18. Bg5 Qb6 19. cxb5 Rc5 20. Qb3 Rxg5 21. bxa6 Qxb3 22. axb3 {0-1 (32) Pichot,A (2630)-Giri,A (2780) chess24.com INT 2021}) 15. Nxd4 Bxd5 16. cxd5 {[#] Hoping for Nb3.} (16. exd5 {simplifies} exd4 17. Bxd4 Nf4 18. Bxg7 Kxg7 19. Rf2) 16... exd4 17. Bxd4 (17. Bd2 {simplifies} Qf6 18. Bd3 Nf4 19. Bxf4 Qxf4 20. g3) 17... Bxd4+ 18. Qxd4 Nf4 19. Bd1 (19. Rf2 {simplifies} Qg5 20. Kh1 Nxe2 21. Rxe2 Rc1+ 22. Rxc1 Qxc1+ 23. Qg1) 19... Qg5 (19... Rc2 $1 $14 20. Rf2 (20. Bxc2 $2 Ne2+ 21. Kh1 Nxd4 $19) 20... Rxf2 21. Qxf2 Qg5) 20. g3 $16 Rc2 $2 {Loses the game.} (20... Rfe8 $16 {was worth a try.} 21. Kh1 Nh5) 21. Kh1 $18 (21. Bxc2 $2 Ne2+ 22. Kg2 Nxd4 $19) 21... Rfc8 22. Bxc2 (22. gxf4 $2 Qg2#) 22... Rxc2 23. Rf2 (23. gxf4 $2 Qg2#) 23... Ne2 24. Qb6 {[%csl LRb7,LRd6]} Rc1+ 25. Rxc1 ({Don't play} 25. Rf1 Rxa1 26. Rxa1 Qd2 $18) 25... Qxc1+ {[%mdl 4096] Endgame KQR-KQN} 26. Kg2 Qg1+ 27. Kh3 {And now e5 would win.} Nc1 {Prevents e5. Strongly threatening ...Nd3.} 28. Qe3 {Prevents Nd3.} ({And not} 28. Qd8+ Kg7 29. Rg2 Qe3 $11) 28... Nd3 {Against f4} 29. Re2 Qf1+ 30. Kh4 Ne5 31. Rf2 g5+ $2 (31... Qd1 32. g4 h6) 32. Qxg5+ {Weighted Error Value: White=0.04 (flawless) /Black=0.26 (precise)} 1-0

[Event "Benidorm Open-A 2022"]
[Site "Benidorm"]
[Date "2022.12.06"]
[Round "4.23"]
[White "Minnican, Alan"]
[Black "Cherniack, Alex"]
[Result "1/2-1/2"]
[ECO "A13"]
[WhiteElo "2049"]
[BlackElo "2188"]
[Annotator "TA"]
[PlyCount "60"]
[EventDate "2022.12.03"]
[EventType "swiss"]
[EventCountry "ESP"]
[SourceTitle "playchess.com"]
[Source "ChessBase"]
[SourceQuality "1"]
[TimeControl "5400+30"]

{[%evp 11,60,8,24,6,6,7,6,0,0,0,0,0,10,0,0,-2,6,-14,10,-6,-12,-58,0,-27,-31,-54,-54,-57,-58,-71,-28,-24,0,0,47,22,48,-8,0,-73,-63,-98,-14,0,7,-13,-14,-49,-26,-65,-20]} 1. Nf3 Nf6 2. g3 d5 3. Bg2 c6 4. c4 e6 5. b3 Nbd7 6. Bb2 Bd6 7. cxd5 {A13: English Opening: 1...e6.} exd5 8. O-O O-O 9. d3 {The position is equal.} Re8 10. Nbd2 Nc5 {[#]} 11. Re1 $146 ({Predecessor:} 11. b4 Ne6 12. a3 a5 13. e4 Bf8 14. Qb3 Nc7 15. e5 Nd7 16. d4 axb4 17. axb4 Rxa1 18. Rxa1 {0-1 (43) Butala,M (2109)-Lazar,A (2284) Ljubljana 2005}) 11... a5 12. Qc2 Bf8 13. Nd4 a4 14. e4 axb3 (14... Bd7 {is more complex.} 15. b4 a3 16. Nxc6 Bxc6 17. Bxf6 Qxf6 18. bxc5 Ba4) 15. axb3 Rxa1 16. Bxa1 (16. Rxa1 $11 {should be considered.} Na6 17. Rxa6 bxa6 18. Nxc6) 16... Qb6 (16... Na6 $15) 17. h3 (17. N4f3 $5 {[%cal Ra1f6]}) 17... Na6 {[%cal Bc5a6,Ba6b4,Bb4d5][%mdl 32]} 18. e5 Nd7 {Strongly threatening ...Nb4.} 19. N2f3 Ndc5 {Prevents e6.} 20. Bf1 Bd7 21. Bc3 Nb4 22. Qd2 Nca6 (22... Ne6 $11) 23. Qf4 {[#] Hoping for Ng5.} (23. Ng5 $5 {[%cal Rd2f4]} h6 24. e6 fxe6 25. Ngxe6 $14) 23... c5 24. Nf5 ({Much weaker is} 24. Ng5 Qg6 25. e6 fxe6 $15) (24. e6 $1 $14 Bxe6 25. Nxe6 fxe6 26. Ng5) 24... d4 $36 {[%mdl 2048] Black is more active.} 25. Bd2 (25. Bxb4 $1 $11 Nxb4 26. Ng5 Bxf5 27. Qxf5) 25... Nd5 (25... h6 {is interesting.} 26. Nd6 Bxd6 27. exd6 Rxe1 28. Bxe1 Be6) 26. Qe4 Bxf5 (26... h6 $17 {With the idea ...Nab4.} 27. Qxd5 Bxf5) 27. Qxf5 Qe6 28. Qh5 h6 {Inhibits Ng5.} 29. Qh4 Nac7 30. Qe4 {[%cal Ob3b4]} Ra8 {Weighted Error Value: White=0.23 (precise) /Black=0.17 (very precise)} (30... Qb6 $5 {[%cal Rb6b3]}) 1/2-1/2